bitfinex/quotes_ETHUSD_20220308
["timestamp","ask_amount","ask_price","bid_price","bid_amount"]
[1646740076046,5.1918241,2593.1,2592.9,0.00097566]
[1646740076250,3.5,2593.0,2592.9,0.00097566]
[1646740076447,2.2648241,2593.1,2592.9,0.00097566]
[1646740076647,1.2648241,2593.1,2592.9,0.00097566]
[1646740076847,0.9648241,2593.1,2592.9,0.00097566]
[1646740078050,0.9648241,2593.1,2592.9,0.03201914]
[1646740078250,1.35096,2593.2,2592.9,0.03201914]
[1646740078700,0.96486,2593.2,2593.0,0.06382479]
[1646740079202,1.419313,2593.2,2593.0,0.06382479]
[1646740079822,1.26486,2593.2,2593.0,0.06382479]
[1646740080200,0.96486,2593.2,2593.0,0.06382479]
[1646740083348,0.96486,2593.2,2593.0,0.09047858]
[1646740084954,0.96935455,2593.4,2593.1,0.03104348]
[1646740085552,0.9645,2593.4,2593.1,0.03104348]
[1646740085754,0.96935464,2593.4,2593.1,0.03104348]
[1646740085998,0.00485464,2593.4,2593.3,0.03104348]
[1646740086700,0.154424,2593.5,2593.3,0.03104348]
[1646740086900,0.15927853,2593.5,2593.3,0.03104348]
[1646740087200,0.00485453,2593.5,2593.3,0.03104348]
[1646740088000,0.00910964,2593.6,2593.3,0.03104348]
[1646740088199,0.00485446,2593.5,2593.3,0.03104348]
[1646740088802,0.96932446,2593.5,2593.3,0.03104348]
[1646740089205,0.96447,2593.5,2593.3,0.12149287]
[1646740089402,0.96932446,2593.5,2593.3,0.12149287]
[1646740090250,0.96447,2593.5,2593.3,0.12149287]
[1646740090648,0.96932446,2593.5,2593.3,0.12149287]
[1646740091449,0.00485446,2593.5,2593.3,0.12149287]
[1646740091650,1.00845933,2593.5,2593.3,0.12149287]
[1646740091852,1.01331378,2593.5,2593.3,0.12149287]
[1646740092251,0.00485445,2593.5,2593.3,0.12149287]
[1646740092656,0.00910964,2593.6,2593.3,0.12149287]
[1646740092854,0.00910964,2593.6,2593.3,0.09044939]
[1646740093055,0.00485445,2593.5,2593.3,0.09044939]
[1646740093902,0.97355964,2593.6,2593.3,0.09044939]
[1646740094304,0.00485445,2593.5,2593.3,0.09044939]
[1646740094704,0.00485445,2593.5,2593.4,0.03104348]
[1646740095108,0.00910964,2593.6,2593.4,0.11539969]
[1646740095504,0.00485445,2593.5,2593.4,0.11539969]
[1646740095705,0.00910964,2593.6,2593.5,5.50970889]
[1646740095904,0.00910964,2593.6,2593.5,8.17694033]
[1646740096104,0.00910964,2593.6,2593.5,9.17694033]
[1646740096503,9.64e-06,2593.6,2593.5,21.36304033]
[1646740096703,0.155394,2594.0,2593.5,21.36304033]
[1646740096904,0.17361328,2594.0,2593.9,0.03104348]
[1646740098958,0.17361328,2594.0,2593.9,1.50338315]
[1646740099159,0.01513782,2594.4,2594.0,3.5]
[1646740099356,0.01417782,2594.4,2594.0,3.5]
[1646740099556,0.01417782,2594.4,2594.3,0.03104348]
[1646740099957,0.05624116,2594.4,2594.3,0.03104348]
[1646740100358,4.116e-05,2594.4,2594.3,0.03104348]
[1646740101398,4.116e-05,2594.4,2594.3,13.399732]
[1646740101599,4.116e-05,2594.4,2594.3,14.399732]
[1646740101898,4.116e-05,2594.4,2594.3,15.97378437]
[1646740102300,0.1238253,2594.6,2594.3,15.97378437]
[1646740102500,4e-07,2594.6,2594.5,12.21714348]
[1646740102699,4e-07,2594.6,2594.5,21.96579585]
[1646740102901,4e-07,2594.6,2594.5,9.31369585]
[1646740103099,4e-07,2594.6,2594.5,7.73964348]
[1646740103702,1.0572624,2594.6,2594.5,7.73964348]
[1646740103903,4e-07,2594.6,2594.5,7.73964348]
[1646740108495,1.13042871,2594.6,2594.5,7.73964348]
[1646740108699,0.0142004,2594.6,2594.5,7.73964348]
[1646740109100,0.0142004,2594.6,2594.5,7.83276778]
[1646740109301,0.0142004,2594.6,2594.5,7.87967275]
[1646740112103,1.10582672,2594.6,2594.5,7.87967275]
[1646740113453,1.10582672,2594.6,2594.5,7.78654845]
[1646740114057,1.10582672,2594.6,2594.5,3.92731183]
[1646740115056,0.0142004,2594.6,2594.5,3.92731183]
[1646740118709,0.0142004,2594.6,2594.5,5.15969711]
[1646740119108,0.0142004,2594.6,2594.5,5.54579711]
[1646740119308,0.01779804,2594.8,2594.7,0.42907549]
[1646740119758,0.02955292,2594.8,2594.7,0.04297549]
[1646740124603,0.02955292,2594.8,2594.7,0.20251034]
[1646740125605,0.03549804,2594.8,2594.7,0.20251034]
[1646740129553,0.03549804,2594.8,2594.7,0.12290593]
[1646740130354,0.03549804,2594.8,2594.7,4.02290593]
[1646740132803,1.4700111,2594.8,2594.7,4.02290593]
[1646740133203,1.4700111,2594.8,2594.7,3.98320593]
[1646740133405,2.5,2594.7,2594.5,3.88040686]
[1646740133610,4.9700111,2594.8,2594.5,3.88040686]
[1646740133611,3.708,2594.6,2594.5,3.88040686]
[1646740133809,0.508,2594.6,2594.5,3.88040686]
[1646740134609,1.508,2594.6,2594.5,3.88040686]
[1646740138049,1.8941,2594.6,2593.5,0.00970889]
[1646740138248,2.3146305,2594.4,2593.6,1.57429917]
[1646740138501,0.508,2594.3,2593.6,1.57429917]
[1646740138708,4.008,2594.3,2593.6,1.57429917]
[1646740138908,1.08720084,2593.9,2593.6,1.57429917]
[1646740139105,0.208,2594.1,2593.6,1.57429917]
[1646740139908,0.00485838,2594.0,2593.6,1.57429917]
[1646740140107,0.00485838,2594.0,2593.6,2.48584051]
[1646740140307,0.00485838,2594.0,2593.7,1.57429917]
[1646740140707,0.208,2594.1,2593.7,1.57429917]
[1646740141114,0.00474994,2594.0,2593.7,1.57429917]
[1646740142110,0.3,2594.2,2593.7,1.57429917]
[1646740142356,0.208,2594.3,2593.7,1.57429917]
[1646740142759,0.0171201,2594.6,2593.7,1.57429917]
[1646740143056,0.0161601,2594.6,2593.7,1.57429917]
[1646740143257,0.0161601,2594.6,2594.3,1.18487299]
[1646740143458,0.0161601,2594.6,2594.4,1.57402201]
[1646740144266,0.03549804,2594.8,2594.4,1.57402201]
[1646740144662,0.00495619,2594.6,2594.4,1.57402201]
[1646740145663,0.03549804,2594.8,2594.4,1.57402201]
[1646740145862,0.00495619,2594.6,2594.4,1.57402201]
[1646740146903,0.03549804,2594.8,2594.4,1.57402201]
[1646740149411,0.03549804,2594.8,2594.6,0.08062213]
[1646740149612,0.00484619,2594.7,2594.6,0.08062213]
[1646740150461,3.74349804,2594.8,2594.6,0.08062213]
[1646740150663,1.03230145,2594.7,2594.6,0.08062213]
[1646740150865,1.03230145,2594.7,2594.6,3.98062213]
[1646740152062,0.24349804,2594.8,2594.6,3.98062213]
[1646740153064,0.24349804,2594.8,2594.6,2.81772213]
[1646740153065,7.60038744,2594.8,2594.6,2.81772213]
[1646740153267,4.46428,2594.7,2594.6,1.61472213]
[1646740153502,4.67228,2594.7,2594.6,1.33402213]
[1646740153707,4.97228,2594.7,2594.6,1.33402213]
[1646740153907,5.97228,2594.7,2594.6,1.33402213]
[1646740154108,1.208,2594.7,2594.6,1.41173469]
[1646740154311,0.208,2594.7,2594.6,1.41173469]
[1646740154707,0.208,2594.7,2594.6,1.40540061]
[1646740156816,0.18986704,2594.8,2594.6,1.40540061]
[1646740157011,0.03549804,2594.8,2594.6,1.40540061]
[1646740157666,4.5,2594.7,2594.5,0.0401447]
[1646740157865,0.208,2594.6,2594.5,0.0401447]
[1646740158465,1.208,2594.6,2594.5,0.0401447]
[1646740159066,1.0,2594.6,2594.5,0.0401447]
[1646740159666,1.466,2594.6,2594.5,0.0401447]
[1646740160272,2.39366494,2594.6,2594.5,0.0401447]
[1646740161312,2.39366494,2594.6,2594.5,3.9401447]
[1646740163320,14.19366494,2594.6,2594.5,3.9401447]
[1646740163918,2.39366494,2594.6,2594.5,3.9401447]
[1646740164318,2.40955068,2594.6,2594.5,3.97301281]
[1646740165170,3.40955068,2594.6,2594.5,3.97301281]
[1646740165373,2.40955068,2594.6,2594.5,3.97301281]
[1646740166175,14.20955068,2594.6,2594.5,3.97301281]
[1646740166375,15.20955068,2594.6,2594.5,3.97301281]
[1646740166773,15.20955068,2594.6,2594.5,3.90071281]
[1646740166973,16.20955068,2594.6,2594.5,3.54651281]
[1646740167577,11.8,2594.4,2593.5,0.00970889]
[1646740167777,2.52274623,2594.0,2593.6,1.5743675]
[1646740167978,0.466,2593.9,2593.6,1.5743675]
[1646740168615,0.466,2593.9,2593.5,0.00970889]
[1646740168811,0.47101272,2593.9,2593.5,0.00970889]
[1646740169014,0.96456,2593.8,2593.5,0.00970889]
[1646740169212,0.466,2593.7,2593.5,0.00970889]
[1646740169412,1.16965222,2593.6,2593.5,0.00970889]
[1646740169613,1.63565222,2593.6,2593.5,0.00970889]
[1646740170225,1.04202292,2593.6,2593.5,0.00970889]
[1646740170413,1.93401874,2593.8,2593.5,0.00970889]
[1646740170414,0.00483874,2593.8,2593.5,0.00970889]
[1646740170613,0.00483874,2593.8,2593.5,1.10970889]
[1646740170813,4.5552,2594.4,2593.5,1.10970889]
[1646740171015,0.466,2594.3,2593.5,1.10970889]
[1646740171216,0.00483887,2593.7,2593.5,1.10970889]
[1646740171812,0.00483887,2593.7,2593.5,5.00970889]
[1646740172013,0.96441,2593.9,2593.5,5.00970889]
[1646740173057,0.96441,2593.9,2593.8,2.28790977]
[1646740173258,0.96431,2594.2,2593.8,2.28790977]
[1646740173461,0.01588574,2594.6,2594.0,1.1]
[1646740174164,0.01588574,2594.6,2594.1,1.1]
[1646740174362,1.48188574,2594.6,2594.1,1.1]
[1646740174561,0.96434,2594.5,2594.1,1.1]
[1646740174764,0.00485192,2594.4,2594.1,1.1]
[1646740174963,1.93356192,2594.4,2594.1,1.1]
[1646740175165,1.93356192,2594.4,2593.9,1.1]
[1646740175566,2.93356192,2594.4,2593.9,1.1]
[1646740175767,0.466,2594.3,2593.9,1.1]
[1646740176027,0.47085211,2594.3,2593.9,1.1]
[1646740176223,0.96434,2594.2,2593.9,1.1]
[1646740177225,0.96919143,2594.2,2593.9,1.1]
[1646740178124,0.96434,2594.2,2593.9,1.1]
[1646740178324,0.96919143,2594.2,2593.9,1.1]
[1646740178926,0.96919143,2594.2,2593.7,0.05163185]
[1646740179326,0.96434,2594.2,2594.1,0.05113747]
[1646740179528,0.96919143,2594.2,2594.1,0.05113747]
[1646740180163,1.93370783,2594.2,2594.1,0.05113747]
[1646740180567,1.9288564,2594.2,2594.1,0.05113747]
[1646740182264,1.9288564,2594.2,2593.6,1.1]
[1646740182265,2.3507,2594.1,2593.6,1.1]
[1646740182466,2.78161,2594.0,2593.6,1.1]
[1646740182666,8.01119,2594.0,2593.6,1.1]
[1646740182868,12.8,2593.7,2593.6,1.1]
[1646740183066,14.28834236,2593.7,2593.5,3.90970889]
[1646740183266,11.8,2593.6,2593.5,3.90970889]
[1646740183509,2.43081,2593.6,2593.5,3.90970889]
[1646740183908,5.3861,2593.5,2592.9,0.3854]
[1646740184112,12.1861,2593.3,2592.9,0.3854]
[1646740184312,3.466,2593.4,2592.9,0.3854]
[1646740184313,1.466,2593.2,2592.9,0.3854]
[1646740184509,0.466,2593.1,2592.9,0.3854]
[1646740184712,1.4309811,2593.1,2592.9,0.3854]
[1646740184910,13.2309811,2593.1,2592.9,0.3854]
[1646740185110,0.8684325,2593.0,2592.2,1.04583942]
[1646740185413,1.43099,2592.9,2592.2,1.04583942]
[1646740185709,1.43099,2592.9,2591.8,2.9989]
[1646740185908,1.43099,2592.9,2591.9,1.5751596]
[1646740186108,13.61709,2592.9,2591.9,1.5751596]
[1646740186311,1.43099,2592.9,2592.0,1.5751596]
[1646740186509,0.3861,2592.8,2592.1,1.5751596]
[1646740186708,0.96503,2592.6,2592.0,1.01512197]
[1646740186910,0.466,2592.5,2592.1,1.5752344]
[1646740187110,0.466,2592.5,2591.7,0.00485733]
[1646740187358,0.466,2592.5,2591.8,1.5752416]
[1646740187959,0.466,2592.5,2591.4,8.0144]
[1646740187960,0.466,2592.5,2591.9,1.5752416]
[1646740188157,0.466,2592.5,2591.8,1.5752416]
[1646740188457,0.466,2592.5,2591.9,2.78833785]
[1646740188661,0.466,2592.5,2591.9,1.21307402]
[1646740189061,0.96503,2592.4,2592.0,1.57524675]
[1646740189262,0.466,2592.5,2592.0,0.02635828]
[1646740190666,0.466,2592.5,2592.4,0.54918861]
[1646740190863,0.01630558,2592.8,2592.4,0.54918861]
[1646740192712,0.01630558,2592.8,2592.5,0.54918861]
[1646740192913,0.466,2592.7,2592.5,0.54918861]
[1646740193714,1.73096,2592.7,2592.5,0.54918861]
[1646740193913,6.23096,2592.7,2592.5,0.54918861]
[1646740194215,0.92991576,2592.6,2592.5,0.54918861]
[1646740194414,1.39591576,2592.6,2592.5,0.54918861]
[1646740195962,4.89591576,2592.6,2592.5,0.54918861]
[1646740196162,5.89591576,2592.6,2592.5,0.54918861]
[1646740196362,17.69591576,2592.6,2592.5,0.54918861]
[1646740196566,5.89591576,2592.6,2592.5,0.54918861]
[1646740196967,2.39591576,2592.6,2592.5,0.54918861]
[1646740197868,1.39591576,2592.6,2592.5,0.54918861]
[1646740198066,5.89591576,2592.6,2592.5,0.54918861]
[1646740198507,1.466,2592.6,2592.5,0.54918861]
[1646740198711,1.53208922,2592.6,2592.5,0.57542765]
[1646740200113,5.18657922,2592.6,2592.5,0.57542765]
[1646740200412,5.03208922,2592.6,2592.5,0.57542765]
[1646740201215,1.53208922,2592.6,2592.5,0.57542765]
[1646740201412,5.03208922,2592.6,2592.5,0.57542765]
[1646740202012,5.33208922,2592.6,2592.5,0.57542765]
[1646740203063,1.83208922,2592.6,2592.5,0.57542765]
[1646740203264,0.83208922,2592.6,2592.5,0.57542765]
[1646740203665,0.53208922,2592.6,2592.5,0.57542765]
[1646740204269,0.51582684,2592.6,2592.5,0.57542765]
[1646740204465,0.51582684,2592.6,2592.2,1.157]
[1646740204668,0.51582684,2592.6,2592.5,1.157]
[1646740205667,0.51582684,2592.6,2592.2,1.157]
[1646740207617,0.51582684,2592.6,2592.0,1.157]
[1646740207818,0.96496,2592.5,2592.0,1.157]
[1646740208623,0.96496,2592.5,2592.1,1.157]
[1646740209419,1.01475558,2592.5,2592.4,0.02609543]
[1646740212769,1.01475558,2592.5,2592.4,5.08309543]
[1646740214012,1.01475558,2592.5,2592.4,0.08309543]
[1646740215814,1.16923658,2592.5,2592.4,0.08309543]
[1646740217270,1.01475558,2592.5,2592.4,0.08154653]
[1646740218666,1.01475558,2592.5,2592.4,0.11199119]
[1646740219766,1.16924258,2592.5,2592.4,0.11199119]
[1646740219967,1.01475558,2592.5,2592.4,0.11199119]
[1646740221214,1.78075558,2592.5,2592.4,0.11199119]
[1646740221414,1.48075558,2592.5,2592.4,0.11199119]
[1646740221614,13.88075558,2592.5,2592.4,0.11199119]
[1646740222015,3.08075558,2592.5,2592.4,0.11199119]
[1646740222512,14.88075558,2592.5,2592.4,0.11199119]
[1646740223114,14.88075558,2592.5,2592.4,4.01199119]
[1646740223315,1.14407132,2592.1,2591.6,0.11781628]
[1646740223515,1.9303304,2592.3,2591.6,0.11781628]
[1646740223723,1.43117,2592.2,2591.6,0.11781628]
[1646740224318,1.43117,2592.2,2591.3,0.11781628]
[1646740224519,1.06075623,2592.1,2591.5,0.11781628]
[1646740224773,1.06075623,2592.1,2591.7,0.11781628]
[1646740224963,0.466,2592.1,2591.7,0.11781628]
[1646740225466,0.466,2592.1,2591.3,0.11781628]
[1646740225663,0.96513,2592.0,2591.5,0.11781628]
[1646740225863,0.96513,2592.0,2591.7,0.11781628]
[1646740226467,0.96513,2592.0,2591.9,0.11781628]
[1646740227569,0.96513,2592.0,2591.7,0.00518028]
[1646740227869,0.96513,2592.0,2591.8,1.57548448]
[1646740228070,0.96513,2592.0,2591.9,0.11781628]
[1646740228371,0.96513,2592.0,2591.9,1.69330076]
[1646740229915,0.96513,2592.0,2591.7,0.03267592]
[1646740230114,0.96513,2592.0,2591.9,0.11781628]
[1646740230315,0.3,2592.1,2591.9,0.11781628]
[1646740230316,2.2304,2592.1,2591.9,0.11781628]
[1646740230916,2.2304,2592.1,2591.7,0.02749564]
[1646740231428,2.384911,2592.1,2591.7,0.03252054]
[1646740231616,1.75201123,2591.0,2590.9,4.69303689]
[1646740231818,1.75201123,2591.0,2590.9,3.47517087]
[1646740231819,0.07136422,2591.0,2590.9,3.47517087]
[1646740232270,0.07136422,2591.0,2590.9,6.65474346]
[1646740232659,0.07136422,2591.0,2590.9,7.36127087]
[1646740233261,0.07136422,2591.0,2590.9,4.54115325]
[1646740233664,0.17136422,2591.0,2590.9,4.54115325]
[1646740234467,0.17136422,2591.0,2590.9,3.83462584]
[1646740235165,1.01461284,2592.0,2590.9,7.33462584]
[1646740235366,1.01461284,2592.0,2591.3,1.06598238]
[1646740235367,0.04948284,2592.0,2591.3,1.06598238]
[1646740235565,0.55193894,2592.1,2591.2,0.70612735]
[1646740235566,0.39743294,2592.1,2591.5,1.06598238]
[1646740235765,0.01143294,2592.1,2591.7,1.06598238]
[1646740236009,0.01143294,2592.1,2591.9,1.06598238]
[1646740236209,0.01143294,2592.1,2592.0,2.64158895]
[1646740236611,0.01143294,2592.1,2592.0,3.64158895]
[1646740238013,0.01143294,2592.1,2592.0,7.14158895]
[1646740239783,0.01143294,2592.1,2592.0,7.8477163]
[1646740240266,0.01143294,2592.1,2592.0,7.14158895]
[1646740240874,0.01143294,2592.1,2592.0,9.50483685]
[1646740241671,0.01143294,2592.1,2592.0,10.20982467]
[1646740241873,0.01143294,2592.1,2592.0,7.14158895]
[1646740243614,0.01143294,2592.1,2592.0,6.75548895]
[1646740243812,0.01143294,2592.1,2592.0,3.28126224]
[1646740244616,0.01143294,2592.1,2592.0,2.28126224]
[1646740244917,0.01143294,2592.1,2592.0,3.66736224]
[1646740245314,0.01143294,2592.1,2592.0,7.16736224]
[1646740245715,0.01143294,2592.1,2592.0,3.66736224]
[1646740247017,0.01143294,2592.1,2592.0,3.28126224]
[1646740247267,0.01143294,2592.1,2592.0,2.28126224]
[1646740247460,0.01143294,2592.1,2592.0,3.28126224]
[1646740248663,0.01143294,2592.1,2592.0,2.28126224]
[1646740249263,0.01143294,2592.1,2592.0,0.70565567]
[1646740249467,15.31143294,2592.1,2592.0,0.65485567]
[1646740249665,4.66892791,2592.1,2592.0,0.65485567]
[1646740249866,2.0,2592.0,2591.9,0.02547404]
[1646740250070,0.466,2592.0,2591.9,0.02547404]
[1646740254611,0.466,2592.0,2591.9,0.02200558]
[1646740256059,3.966,2592.0,2591.9,0.02200558]
[1646740256259,0.466,2592.0,2591.9,0.02200558]
[1646740259113,0.466,2592.0,2591.9,0.02168228]
[1646740259311,3.966,2592.0,2591.9,0.02168228]
[1646740260912,0.466,2592.0,2591.9,0.02168228]
[1646740261512,3.966,2592.0,2591.9,0.02168228]
[1646740261715,0.466,2592.0,2591.9,0.02168228]
[1646740261915,0.01143294,2592.1,2591.9,0.02168228]
[1646740263064,0.16594194,2592.1,2591.9,0.02168228]
[1646740263263,0.01143294,2592.1,2591.9,0.02168228]
[1646740264069,0.01143294,2592.1,2592.0,2.49878054]
[1646740264371,0.04192291,2592.1,2592.0,2.49878054]
[1646740265470,0.04192291,2592.1,2592.0,3.64857168]
[1646740265870,0.1928,2592.7,2592.1,0.08384581]
[1646740266110,0.19765404,2592.8,2592.1,1.00722731]
[1646740266309,0.19765404,2592.8,2592.3,0.9233815]
[1646740266511,0.96479,2592.7,2592.3,0.9233815]
[1646740267113,0.96479,2592.7,2592.1,0.08384581]
[1646740267314,0.96479,2592.7,2592.3,0.9233815]
[1646740268316,2.19109188,2592.7,2592.4,0.9233815]
[1646740268917,2.49109188,2592.7,2592.4,0.9233815]
[1646740269117,5.69109188,2592.7,2592.4,0.9233815]
[1646740269416,5.69109188,2592.7,2592.1,0.08384581]
[1646740269417,18.64319188,2592.7,2592.1,0.08384581]
[1646740269861,0.9651623,2592.5,2592.1,0.08384581]
[1646740270061,5.89628,2592.4,2592.1,0.08384581]
[1646740270267,17.69628,2592.4,2592.1,0.08384581]
[1646740270466,5.3861,2592.2,2591.8,0.61359087]
[1646740270661,5.3861,2592.2,2591.4,0.7954]
[1646740270662,12.1861,2591.9,2591.4,0.7954]
[1646740270866,16.1521,2591.8,2591.4,0.7954]
[1646740271063,2.39693,2591.7,2591.6,0.00485628]
[1646740271261,4.26400966,2591.7,2591.6,0.00485628]
[1646740271464,4.26400966,2591.7,2591.4,0.7954]
[1646740271663,3.26400966,2591.7,2591.4,0.7954]
[1646740272266,5.19491966,2591.7,2591.4,0.7954]
[1646740272467,1.93096,2591.4,2590.5,6.5338]
[1646740272668,2.89645,2591.4,2590.6,1.57605235]
[1646740272867,3.19645,2591.4,2590.7,1.57605235]
[1646740273068,3.66245,2591.4,2590.8,1.57605235]
[1646740273266,3.66245,2591.4,2590.8,0.00486059]
[1646740273512,0.87186986,2590.9,2590.8,0.00486059]
[1646740273713,0.87186986,2590.9,2590.8,1.58100791]
[1646740274314,0.87186986,2590.9,2590.8,1.57614732]
[1646740274916,2.80285986,2590.9,2590.7,0.00486072]
[1646740275416,3.10285986,2590.9,2590.2,0.22830839]
[1646740275615,3.10285986,2590.9,2590.3,1.57615942]
[1646740275816,3.10285986,2590.9,2590.7,0.00486079]
[1646740276616,3.10285986,2590.9,2590.2,0.22830839]
[1646740276916,3.10285986,2590.9,2590.7,0.00485333]
[1646740277362,2.80285986,2590.9,2590.7,0.00485333]
[1646740277564,1.93099,2590.9,2590.7,0.00485333]
[1646740277761,1.93099,2590.9,2590.2,1.24840839]
[1646740277961,1.93099,2590.9,2590.4,1.0201]
[1646740278166,1.93099,2590.9,2590.7,0.00485333]
[1646740278366,0.96551,2591.0,2590.7,0.63885333]
[1646740278767,1.87423152,2591.0,2590.7,0.63885333]
[1646740278970,1.87423152,2591.0,2590.7,0.634]
[1646740279167,3.70593563,2590.9,2590.7,0.634]
[1646740279368,0.20593563,2590.9,2590.7,0.00485327]
[1646740280171,0.20593563,2590.9,2590.0,0.634]
[1646740280369,1.056165,2590.4,2590.1,0.634]
[1646740281412,1.056165,2590.4,2589.8,0.634]
[1646740281613,0.3,2590.5,2589.8,0.634]
[1646740281913,3.5,2590.7,2590.1,0.00485454]
[1646740282114,0.9657,2590.4,2590.1,0.00485454]
[1646740282712,2.08291688,2590.4,2589.9,0.634]
[1646740282911,2.08291688,2590.4,2590.1,0.00485454]
[1646740283717,0.9657,2590.4,2590.1,0.00485454]
[1646740283917,0.9657,2590.4,2589.7,0.634]
[1646740284118,0.9657,2590.4,2589.9,0.634]
[1646740284316,0.9657,2590.4,2590.1,0.00485454]
[1646740284795,0.97756686,2590.4,2590.1,0.00485454]
[1646740284978,0.97756686,2590.4,2589.7,0.634]
[1646740285180,0.97756686,2590.4,2590.1,0.00485454]
[1646740285181,0.9657,2590.2,2590.1,0.00485454]
[1646740286181,1.89373015,2590.2,2589.7,0.634]
[1646740286584,1.89373015,2590.2,2590.0,0.00485466]
[1646740287385,2.19373015,2590.2,2589.7,0.634]
[1646740287786,2.19373015,2590.2,2590.0,0.00485473]
[1646740287986,2.38673015,2590.2,2590.0,0.00485473]
[1646740288387,0.493,2590.2,2590.0,0.00485473]
[1646740288613,0.493,2590.2,2589.7,0.634]
[1646740288815,0.193,2590.2,2590.0,0.00485473]
[1646740289015,0.193,2590.2,2590.0,0.63885473]
[1646740289219,1.1587,2590.2,2590.0,0.63885473]
[1646740289415,1.17203125,2590.2,2590.0,0.63885473]
[1646740289816,1.17203125,2590.2,2590.0,0.634]
[1646740290015,1.17203125,2590.2,2590.1,0.634]
[1646740290016,0.97903125,2590.2,2590.1,0.634]
[1646740290418,0.13819997,2591.0,2590.1,1.0201]
[1646740290619,0.3859,2591.7,2590.7,0.01283479]
[1646740290620,0.193,2591.2,2590.7,0.01283479]
[1646740291019,0.96518,2591.2,2590.9,0.634]
[1646740291217,0.1928,2591.1,2590.9,0.634]
[1646740291418,0.96518,2591.2,2590.9,0.634]
[1646740292017,0.96518,2591.2,2590.4,0.63885777]
[1646740292271,0.96518,2591.2,2590.6,0.634]
[1646740292461,0.96538,2591.1,2590.9,0.00485488]
[1646740292762,1.00123274,2591.0,2590.9,0.00485488]
[1646740292963,4.50123274,2591.0,2590.9,0.00485488]
[1646740293161,1.00123274,2591.0,2590.9,0.00485488]
[1646740293365,0.96552,2590.8,2590.0,0.634]
[1646740293565,0.96552,2590.8,2590.2,0.634]
[1646740294268,0.96552,2590.8,2590.3,0.634]
[1646740294766,0.96561,2590.5,2590.3,0.634]
[1646740294965,0.96561,2590.5,2590.4,0.00366]
[1646740295266,0.96561,2590.5,2590.4,0.63766]
[1646740296010,0.96561,2590.5,2590.4,0.634]
[1646740298817,0.81561,2590.5,2590.4,0.634]
[1646740299017,0.83118663,2590.5,2590.4,0.634]
[1646740304016,8.663e-05,2590.5,2590.4,14.39670501]
[1646740304215,8.663e-05,2590.5,2590.4,18.69670501]
[1646740305214,8.663e-05,2590.5,2590.4,15.69670501]
[1646740305416,8.663e-05,2590.5,2590.4,18.69670501]
[1646740305618,8.663e-05,2590.5,2590.4,19.16270501]
[1646740305816,3.5,2592.2,2590.4,19.16270501]
[1646740305817,0.193,2591.8,2590.4,19.35827252]
[1646740306018,0.02023672,2592.0,2591.3,0.634]
[1646740306019,0.1928,2591.9,2591.3,0.634]
[1646740306318,0.96491,2591.7,2591.3,0.634]
[1646740306717,0.1928,2591.9,2591.5,0.634]
[1646740306918,1.92977,2592.0,2591.3,0.634]
[1646740307121,1.92977,2592.0,2591.1,0.3861]
[1646740307122,1.92977,2592.0,2591.5,0.634]
[1646740307370,2.12257,2592.0,2591.5,0.634]
[1646740307966,0.90587745,2591.7,2591.6,0.634]
[1646740308369,0.96505,2591.9,2591.6,0.634]
[1646740308970,0.96505,2591.9,2591.7,0.634]
[1646740308971,2.89515,2591.9,2591.7,0.634]
[1646740309870,2.89515,2591.9,2591.8,0.634]
[1646740310872,2.89515,2591.9,2591.4,0.634]
[1646740311126,2.2301,2591.9,2591.4,0.634]
[1646740312127,1.9301,2591.9,2591.4,0.634]
[1646740312526,1.9301,2591.9,2591.5,0.634]
[1646740313131,2.2301,2591.9,2591.5,0.634]
[1646740313327,2.384617,2591.9,2591.5,0.634]
[1646740313527,1.18122557,2591.7,2590.9,1.91609392]
[1646740313735,1.18122557,2591.7,2591.1,0.634]
[1646740313933,0.96509,2591.6,2591.3,0.634]
[1646740314532,0.96509,2591.6,2591.4,0.634]
[1646740315460,0.96509,2591.6,2591.5,0.634]
[1646740316462,1.35119,2591.6,2591.0,0.634]
[1646740316662,1.65119,2591.6,2591.2,0.634]
[1646740317267,1.35119,2591.6,2591.2,0.634]
[1646740317769,1.35119,2591.6,2590.9,0.634]
[1646740317967,1.35119,2591.6,2591.1,0.634]
[1646740317968,1.65119,2591.6,2591.1,0.634]
[1646740318169,2.44389,2591.6,2591.3,0.634]
[1646740318368,1.26509,2591.6,2591.3,0.634]
[1646740318619,1.26509,2591.6,2591.4,0.634]
[1646740318821,4.76509,2591.6,2591.4,0.634]
[1646740319220,3.5,2591.5,2591.4,0.634]
[1646740319523,3.5,2591.5,2590.8,0.00483749]
[1646740319524,0.3861,2591.4,2590.8,0.00483749]
[1646740319720,5.81712,2591.3,2590.8,0.00483749]
[1646740319922,5.81712,2591.3,2590.6,0.634]
[1646740320119,6.11712,2591.3,2590.6,0.634]
[1646740320323,6.11712,2591.3,2590.8,0.00494236]
[1646740320720,2.03951783,2591.0,2590.8,0.00494236]
[1646740320921,3.00496783,2591.0,2590.8,0.00494236]
[1646740321119,3.00496783,2591.0,2590.7,0.634]
[1646740321120,3.39106783,2591.0,2590.7,0.634]
[1646740321525,0.96545,2591.0,2590.8,0.00494213]
[1646740322272,2.23089,2591.1,2591.0,1.35010172]
[1646740323670,0.9655,2590.7,2589.9,2.1807]
[1646740323869,1.12707879,2590.6,2590.0,1.57667507]
[1646740324069,1.12707879,2590.6,2590.1,1.57667507]
[1646740324268,1.12707879,2590.6,2590.2,1.57667507]
[1646740324470,1.12707879,2590.6,2590.3,1.57669681]
[1646740324673,1.12707879,2590.6,2590.4,1.57669681]
[1646740324873,3.28259,2590.5,2589.8,0.1928]
[1646740325073,2.89649,2590.5,2590.2,0.00468442]
[1646740325475,2.89649,2590.5,2589.6,0.193]
[1646740325476,0.86954184,2590.1,2589.6,0.193]
[1646740325776,0.86954184,2590.1,2589.7,1.57699029]
[1646740325777,0.96563,2590.0,2589.7,1.57699029]
[1646740326014,1.26563,2590.0,2589.7,1.57699029]
[1646740327416,1.26563,2590.0,2589.8,1.57699029]
[1646740328415,2.34208177,2590.0,2589.8,1.57699029]
[1646740328618,2.34208177,2590.0,2589.9,1.57699029]
[1646740328819,1.37645177,2590.0,2589.9,1.57699029]
[1646740329018,1.09357491,2590.0,2589.9,1.57699029]
[1646740329318,0.01712314,2590.0,2589.9,1.57699029]